[Event "Mitropa Cup Women 2022"]
[Site "Corte"]
[Date "2022.05.05"]
[Round "6.2"]
[White "Urh, Zala"]
[Black "Heinatz, Gundula"]
[Result "1/2-1/2"]
[ECO "D10"]
[WhiteElo "2315"]
[BlackElo "2117"]
[Annotator "TA"]
[PlyCount "158"]
[EventDate "2022.04.30"]
[EventType "team-tourn"]
[EventCountry "FRA"]
[SourceTitle "playchess.com"]
[Source "ChessBase"]
[SourceQuality "1"]
[WhiteTeam "Slovenia"]
[BlackTeam "Switzerland"]
[WhiteTeamCountry "SLO"]
[BlackTeamCountry "SUI"]
[TimeControl "40/5400+30:1800+30"]

{[%evp 9,158,6,7,6,24,27,45,52,71,67,77,43,74,66,69,77,93,33,81,96,152,172,180,52,64,71,57,69,95,88,104,69,93,95,107,53,150,149,158,148,171,121,155,125,119,104,121,75,63,54,80,61,74,74,87,0,0,-8,0,-39,-38,-118,-45,-73,0,0,0,0,0,-111,-168,-113,-94,-87,-65,-104,0,0,0,0,0,0,0,0,276,269,501,10,108,0,0,0,514,98,84,100,97,25,40,14,14,14,14,14,14,14,14,14,14,14,70,70,70,70,69,67,127,69,69,31,91,52,42,8,40,8,8,0,0,0,1,4,8,0,0,0,0,0,10,10,12,12,12,14,20,20,20,20,32,8,8]} 1. d4 {[%emt 0:00:01]} d5 {[%emt 0:00:18]} 2. c4 {[%emt 0:00:15]} c6 {[%emt 0:00:05]} 3. cxd5 {[%emt 0:00:04]} cxd5 {[%emt 0:00:05]} 4. Bg5 {[%emt 0:00:06]} Nc6 {[%emt 0:01:47]} 5. Nc3 {[%emt 0:00:29]} h6 {[%emt 0:01:52]} 6. Bh4 {[%emt 0:00:31] D10: Slav Defence: 3 cxd5 (without early Nf3) and 3 Nc3.} (6. Bf4 {seems wilder.} Bf5 7. e4 Bxe4 8. Nxe4 e5 9. dxe5 dxe4 10. Bc4) 6... g5 {[%emt 0:07:18]} 7. Bg3 {[%emt 0:00:26]} Nf6 {[%emt 0:01:28]} 8. e3 {[%emt 0:03:32] White is slightly better.} a6 {[%emt 0:03:22]} 9. Bd3 {[%emt 0:05:19] Against Bf5} Bg7 {[%emt 0:10:14]} 10. Nge2 {[%emt 0:06:43][%cal Bg1e2,Be2f4,Bf4d3,Bd3c5][%mdl 32] [#]} Bg4 $146 {[%emt 0:16:29]} ({Predecessor:} 10... Nh5 11. O-O O-O 12. Qb3 e6 13. Na4 Nxg3 14. Nxg3 Na5 15. Qc2 Bd7 16. Nc5 Rc8 {½-½ (84) Molchanov,Y (2112)-Wang,Y (2357) Dos Hermanas 2004}) 11. f3 {[%emt 0:06:33]} Bd7 {[%emt 0:05:12]} 12. Rc1 {[%emt 0:06:01]} b5 {[%emt 0:01:41]} 13. Kf2 {[%emt 0:15:38]} (13. O-O $16) 13... Qb6 {[%emt 0:01:27]} (13... e6 $14 {might be stronger.}) 14. h4 $16 {[%emt 0:02:20]} g4 {[%emt 0:05:11]} (14... Qa5 $142) 15. Nf4 {[%emt 0:02:04]} e6 {[%emt 0:01:44]} 16. h5 {[%emt 0:01:37]} ({White has to play} 16. fxg4 $18 {Hoping for Kg1.} Ne7 17. Nh5 Nxh5 18. gxh5) 16... Rg8 {[%emt 0:05:14]} 17. Bb1 {[%emt 0:03:22]} (17. fxg4 Nxd4 $1 18. exd4 Nxg4+ 19. Ke1 (19. Qxg4 $2 Bxd4+ 20. Kf3 Rxg4 $19) 19... Bxd4 $11) 17... Bf8 {[%emt 0:00:52]} 18. Nce2 {[%emt 0:09:04]} Be7 {[%emt 0:12:15]} 19. Nd3 {[%emt 0:02:13]} Rg5 {[%emt 0:02:49]} 20. Bh4 {[%emt 0:10:04]} Rg7 {[%emt 0:04:12]} 21. Nc5 {[%emt 0:04:29]} Rc8 {[%emt 0:02:35]} 22. a3 {[%emt 0:04:49]} (22. Qd2 $16) 22... Nh7 {[%emt 0:03:32]} (22... Na5 $14) 23. Bg3 {[%emt 0:01:33]} Nf6 {[%emt 0:01:09]} 24. Bf4 {[%emt 0:01:21]} (24. Nxd7 $6 Kxd7 25. Bf4 Rh8 $14) 24... Ng8 {[%emt 0:00:37]} 25. Rc3 {[%emt 0:01:25]} (25. b4 $18) 25... Bg5 {[%emt 0:01:11]} 26. Qc1 {[%emt 0:01:11]} (26. fxg4 $6 Nf6 $14) (26. Nxd7 $6 Kxd7 27. Bg3 (27. fxg4 Nf6 $11) 27... Be7 $14) 26... Nge7 {[%emt 0:00:24]} 27. Bxg5 {[%emt 0:06:10]} Rxg5 {[%emt 0:00:02]} 28. Rh4 {[%emt 0:00:01]} ({Better is} 28. b4) 28... gxf3 {[%emt 0:01:11]} 29. gxf3 {[%emt 0:00:06]} a5 {[%emt 0:02:30]} 30. Qh1 {[%emt 0:01:38]} b4 {[%emt 0:00:31]} 31. axb4 {[%emt 0:00:03]} Nxb4 {[%emt 0:00:36]} 32. Qc1 {[%emt 0:05:40]} (32. Rg4 $1 $16 {[%cal Rg4g5] And now Rxg5 would win.} Rxg4 33. fxg4) 32... Rb8 {[%emt 0:00:34]} 33. b3 {[%emt 0:00:28]} Bb5 $36 {[%emt 0:01:09][%mdl 2048] Black fights for an advantage.} 34. Nf4 {[%emt 0:00:25]} Qd6 {[%emt 0:01:16]} 35. Rg4 {[%emt 0:01:14]} (35. Qd2 $15) 35... Rxg4 {[%emt 0:00:19]} (35... e5 $1 $17 {[%cal Re5f4]} 36. dxe5 Qxe5) 36. fxg4 $15 {[%emt 0:00:01]} Nec6 {[%emt 0:00:32]} (36... Nbc6 $17) 37. Qd2 $11 {[%emt 0:00:45]} Ke7 {[%emt 0:00:19]} 38. Rc1 {[%emt 0:00:33]} Rg8 {[%emt 0:00:29]} 39. Bd3 {[%emt 0:01:02] [#]} (39. Kg3 $11) 39... Bxd3 {[%emt 0:00:29]} (39... Nxd4 $1 $17 {[%mdl 512]} 40. Bh7 Rxg4 41. Qxd4 Nc6 42. Nxd5+ Qxd5 43. Qxd5 exd5) 40. Ncxd3 $19 {[%emt 0:00:10]} Rxg4 {[%emt 0:00:37]} 41. Nxb4 {[%emt 0:30:39]} axb4 {[%emt 0:36:15]} 42. Kf3 {[%emt 0:00:00]} Rg5 {[%emt 0:00:00]} (42... Rh4 $17 43. Kg2 Kd7) 43. Qc2 $1 $11 {[%emt 0:00:00]} Kd7 {[%emt 0:00:00]} 44. Qh7 $1 {[%emt 0:00:00][%csl LRf7,LRh6]} Rf5 {[%emt 0:00:00][%cal Oc6d4] Threatens to win with ...Nxd4+!} 45. Qxh6 {[%emt 0:00:00]} Qb8 {[%emt 0:00:00]} 46. Qg7 {[%emt 0:00:00] Prevents Qg8.} e5 $2 {[%emt 0:00:00][%mdl 8192]} (46... Na5 $2 47. h6 Nxb3 48. Rc2 $18) (46... Ne7 $11) 47. Kg4 $1 $18 {[%emt 0:00:00][%csl LRd5,LRf5]} Nxd4 $2 {[%emt 0:00:00] [#]} (47... Ne7 {is a better defense.} 48. Nxd5 Qb5 49. Rc7+ Kd6 50. Nxe7 Rf1 51. Qxe5+ Qxe5 52. Rc6+ (52. dxe5+ Kxc7 53. Nf5 Rg1+ 54. Ng3 Rg2 $18) 52... Kxe7 53. dxe5 Rg1+ 54. Kf4 Rf1+ 55. Ke4 Kf8) 48. Nxd5 $2 {[%emt 0:00:00]} (48. Nd3 $1 $18 Ne6 49. Nc5+ Kd6 50. Nxe6 fxe6 51. h6) 48... Ne6 {[%emt 0:00:00]} (48... Rf2 $1 $11 {remains equal.} 49. Kh3 (49. Rc7+ $2 Qxc7 50. Nxc7 Rg2+ 51. Kh3 Rxg7 $19) 49... Rf3+ 50. Kh2 (50. Kg2 Qb5 $11) 50... Qb5) 49. Qh6 {[%emt 0:00:03] The board is on fire. White is much more active.} (49. Qh7 $16 Rg5+ 50. Kh4 (50. Kh3 Qf8 $16)) 49... Rg5+ $11 {[%emt 0:00:00]} 50. Kh4 $1 {[%emt 0:00:01]} ({Avoid the trap} 50. Kh3 $2 e4 51. Nf6+ Ke7 52. Nxe4 Rf5 $17) 50... Qd8 {[%emt 0:00:00][%mdl 8192] [#]} (50... e4 $1 $11 {and Black stays safe.} 51. Nf4 Qe5 52. Rd1+ Ke7) 51. Qf6 $2 {[%emt 0:04:18]} (51. Nf6+ $1 $18 {and the rest is easy.} Ke7 52. Ra1) 51... Qxf6 $16 {[%emt 0:00:00]} 52. Nxf6+ {[%emt 0:00:01][%mdl 4096] Endgame KRN-KRN} Ke7 {[%emt 0:00:00]} 53. Nd5+ {[%emt 0:00:02]} ({White should play} 53. Rf1 $16) 53... Kf8 {[%emt 0:00:00]} 54. h6 {[%emt 0:01:01] Rc8+ would kill now.} (54. Nc7 $5 {[%cal Rc7e6]} Rf5 55. Nxe6+ fxe6 56. h6 $16) 54... f5 $1 {[%emt 0:01:07]} 55. Nf6 {[%emt 0:01:42] Intending Nh7+ and mate.} Rg6 {[%emt 0:00:45][%csl LRf6,LRh6]} 56. Rc8+ {[%emt 0:00:18]} Kf7 {[%emt 0:00:14] [#]} 57. h7 $1 {[%emt 0:00:16]} Rh6+ {[%emt 0:01:13]} 58. Kg3 {[%emt 0:00:01]} Nf8 {[%emt 0:04:07]} 59. Nd7 {[%emt 0:00:23]} Nxh7 {[%emt 0:00:06]} (59... Nxd7 $11 60. h8=Q Rxh8 61. Rxh8 Nc5) 60. Nxe5+ $14 {[%emt 0:00:08]} Ke7 {[%emt 0:00:45]} 61. Rc7+ {[%emt 0:00:46]} Kd8 {[%emt 0:00:18]} 62. Rb7 {[%emt 0:01:20]} Rh5 {[%emt 0:00:40]} (62... Ng5 $14) 63. Rxb4 {[%emt 0:00:37]} (63. Nf7+ $16 Kc8 64. Nd6+ (64. Rxb4 Nf6 $16) 64... Kd8 65. Kf4 (65. Rxb4 Kd7 $16)) 63... Nf6 {[%emt 0:00:14]} 64. Rd4+ {[%emt 0:00:27]} Kc7 {[%emt 0:00:34]} ({Black should try} 64... Ke7 $14) 65. b4 {[%emt 0:00:33]} Rh1 {[%emt 0:00:35]} 66. Nd3 {[%emt 0:00:39]} Rf1 {[%emt 0:00:52]} 67. Nc5 {[%emt 0:00:32]} Kc6 {[%emt 0:00:50]} 68. Ne6 {[%emt 0:00:37]} Ne4+ {[%emt 0:00:36]} 69. Kg2 {[%emt 0:00:17]} Rf2+ {[%emt 0:00:26]} 70. Kg1 {[%emt 0:00:10][%cal Od4e4] aiming for Rxe4!} Rb2 {[%emt 0:00:55]} 71. Nf4 {[%emt 0:00:57]} Nd2 {[%emt 0:01:01] ...Nf3+ is the strong threat.} 72. Rd5 {[%emt 0:00:41]} Nf3+ {[%emt 0:00:18]} 73. Kf1 {[%emt 0:00:01]} Rxb4 {[%emt 0:00:55]} 74. Rxf5 {[%emt 0:00:16]} Nd2+ {[%emt 0:00:21]} 75. Ke2 {[%emt 0:00:21]} Ne4 {[%emt 0:00:15]} 76. Rf8 {[%emt 0:00:08]} Nd6 {[%emt 0:00:21]} 77. Nd3 {[%emt 0:00:17]} Re4 {[%emt 0:00:22]} 78. Kf3 {[%emt 0:00:17]} Re7 {[%emt 0:00:26]} 79. Nf2 {[%emt 0:00:41]} Rf7+ {[%emt 0:00:05] Weighted Error Value: White=0.41/Black=0.41} 1/2-1/2

[Event "Mitropa Cup Women 2022"]
[Site "Corte"]
[Date "2022.05.05"]
[Round "6.2"]
[White "Bashylina, Luisa"]
[Black "Berke, Ana"]
[Result "0-1"]
[ECO "E46"]
[WhiteElo "1981"]
[BlackElo "2150"]
[Annotator "TA"]
[PlyCount "132"]
[EventDate "2022.04.30"]
[EventType "team-tourn"]
[EventCountry "FRA"]
[SourceTitle "playchess.com"]
[Source "ChessBase"]
[SourceQuality "1"]
[WhiteTeam "Germany"]
[BlackTeam "Croatia"]
[WhiteTeamCountry "GER"]
[BlackTeamCountry "CRO"]
[TimeControl "40/5400+30:1800+30"]

{[%evp 9,132,-2,16,8,9,12,12,8,8,3,38,6,6,14,45,24,33,33,45,33,33,23,31,18,45,33,41,33,37,31,43,32,32,25,25,18,14,14,16,0,37,0,0,0,0,0,50,52,85,85,85,85,66,45,85,85,85,85,85,85,90,72,76,44,70,0,0,-91,0,0,0,0,0,0,0,0,71,79,85,54,62,14,8,0,0,0,0,0,0,0,0,0,0,0,0,0,0,0,-5,-87,-41,-630,-614,-592,-587,-561,-562,-492,-533,-533,-533,-475,-482,-430,-348,-344,-340,-321,-313,-5097,-5097,-29976,-29979,-29983,-29984]} 1. d4 {[%emt 0:00:03]} Nf6 {[%emt 0:00:05]} 2. c4 {[%emt 0:00:05]} e6 {[%emt 0:00:05]} 3. Nc3 {[%emt 0:00:03]} Bb4 {[%emt 0:00:05]} 4. e3 {[%emt 0:00:04]} O-O {[%emt 0:00:54]} 5. Bd2 {[%emt 0:00:04]} c5 {[%emt 0:00:13]} 6. a3 {[%emt 0:00:14] E46: Nimzo-Indian: Rubinstein: 4 e3 0-0 5 Ne2 without early Bd3.} Bxc3 {[%emt 0:00:46]} 7. Bxc3 {[%emt 0:00:04]} Ne4 {[%emt 0:00:35]} 8. Ne2 {[%emt 0:00:11] The position is equal.} b6 {[%emt 0:03:15]} 9. d5 {[%emt 0:00:29]} d6 {[%emt 0:05:29]} ({Don't do} 9... Qh4 10. g3 Qh5 11. Bg2 exd5 12. Qc2 $14 (12. cxd5 f5 $14) (12. Qxd5 Qxd5 13. cxd5 f5 $11)) 10. f3 {[%emt 0:02:07]} (10. Qd3 $5 {[%cal Rd3e4]} Nxc3 11. Nxc3 $11) 10... Nxc3 {[%emt 0:01:40]} 11. Nxc3 {[%emt 0:00:08]} e5 {[%emt 0:03:26]} 12. Qd2 {[%emt 0:09:02] [#]} Na6 $146 {[%emt 0:02:43]} ({Predecessor:} 12... f5 13. Be2 Nd7 14. O-O-O Nf6 15. h3 Qe7 16. Rde1 Bd7 17. g4 g6 18. gxf5 gxf5 {1-0 (44) Aczel,G (2511)-Karacsonyi,G (2292) Budapest 2020}) 13. Bd3 {[%emt 0:04:55]} Nc7 {[%emt 0:01:20]} 14. O-O {[%emt 0:04:15]} f5 {[%emt 0:01:10]} 15. f4 {[%emt 0:06:05]} e4 {[%emt 0:01:43]} 16. Be2 {[%emt 0:01:53]} Qe8 {[%emt 0:02:13]} 17. Qc2 {[%emt 0:09:38]} Bd7 {[%emt 0:08:25]} 18. b4 {[%emt 0:05:29]} Qe7 {[%emt 0:03:27]} 19. Rfb1 {[%emt 0:03:27]} Rf6 {[%emt 0:02:03][%cal Bf8f6,Bf6h6,Bh6h4][%mdl 32]} 20. bxc5 {[%emt 0:02:19]} dxc5 {[%emt 0:00:48]} 21. Rd1 {[%emt 0:04:02]} Rh6 {[%emt 0:02:18]} 22. Bf1 {[%emt 0:05:30]} Rf8 {[%emt 0:07:29]} 23. Rd2 {[%emt 0:04:17]} Rff6 {[%emt 0:08:35]} 24. g4 {[%emt 0:03:35]} Rd6 {[%emt 0:07:56]} 25. g5 {[%emt 0:04:38]} Rh4 {[%emt 0:01:46]} 26. Rg2 {[%emt 0:02:16]} h6 {[%emt 0:05:10]} 27. Qf2 {[%emt 0:01:51]} hxg5 {[%emt 0:00:33]} ({Better is} 27... Rh3 $1 $11) 28. fxg5 $14 {[%emt 0:01:08]} Rh8 {[%emt 0:01:55]} 29. Qf4 {[%emt 0:01:24]} Ne8 {[%emt 0:01:15]} 30. Be2 {[%emt 0:01:23]} g6 {[%emt 0:04:10]} 31. Rf1 {[%emt 0:03:21]} Ng7 {[%emt 0:01:49]} 32. Rgf2 {[%emt 0:02:37]} Be8 {[%emt 0:03:13]} 33. h4 {[%emt 0:02:27]} Rd8 {[%emt 0:02:51]} 34. Qg3 {[%emt 0:08:00]} Qd6 {[%emt 0:01:58]} 35. Rf4 {[%emt 0:00:41]} Bd7 {[%emt 0:01:54]} 36. Kg2 {[%emt 0:04:11]} Re8 {[%emt 0:01:46]} 37. R1f2 {[%emt 0:02:51]} (37. R4f2 $14 Qxg3+ 38. Kxg3) 37... Qe5 $11 {[%emt 0:02:58]} 38. Nd1 {[%emt 0:02:45] [#]} (38. Nxe4 $1 $11 fxe4 39. Rf8+ $1 Kh7 40. Rxh8+ Kxh8 41. Rf8+ $1 Kh7 42. Qxe5 Rxe5 43. Rf7) 38... a6 {[%emt 0:03:38] Black is more active.} (38... b5 $1 $17 {And now ...b4 would win.} 39. Rf1 b4 40. axb4 cxb4) 39. Rf1 $1 {[%emt 0:01:08]} b5 {[%emt 0:03:56]} 40. R4f2 {[%emt 0:00:50]} Kf7 {[%emt 0:02:44]} 41. Qxe5 {[%emt 0:07:18]} Rxe5 {[%emt 0:00:06]} 42. Kg3 {[%emt 0:00:56]} bxc4 {[%emt 0:08:30]} (42... Ree8 $11 {remains equal.}) 43. Nc3 $16 {[%emt 0:05:26]} Rb8 {[%emt 0:03:05]} 44. Bxc4 {[%emt 0:00:39]} Ree8 {[%emt 0:03:47][%cal Be5e8,Be8d8,Bd8d7][%mdl 32]} 45. d6+ {[%emt 0:07:09]} ({Reject} 45. Bxa6 Rb3 46. Rc1 Rxa3 $11) (45. Rc2 $14) 45... Be6 $132 {[%emt 0:01:26][%mdl 2048] [#] Black is fighting back} 46. d7 $1 {[%emt 0:02:09]} Red8 {[%emt 0:00:33]} (46... Nh5+ 47. Kh2) 47. Nxe4 {[%emt 0:03:12][%cal Of1d1]} Bxc4 {[%emt 0:00:36] Chess con chili.} 48. Nd6+ {[%emt 0:00:03]} Ke6 {[%emt 0:00:17]} 49. Nxc4 {[%emt 0:00:02]} Rxd7 {[%emt 0:00:18]} 50. Rc2 {[%emt 0:01:18]} Rb3 {[%emt 0:00:17]} 51. Kf2 {[%emt 0:00:44]} Rdd3 {[%emt 0:00:48]} 52. Rfc1 {[%emt 0:00:57]} f4 {[%emt 0:02:40]} 53. exf4 {[%emt 0:01:04] Strongly threatening Re1+.} Rf3+ {[%emt 0:00:45]} 54. Ke2 {[%emt 0:00:46]} (54. Ke1 $11 {keeps the balance.}) 54... Nf5 {[%emt 0:01:29]} (54... Nh5 $17 55. f5+ Kxf5) 55. Nd2 $2 {[%emt 0:02:17][%mdl 8192] White does not recover from this.} (55. Rb2 $15) 55... Nd4+ $19 {[%emt 0:01:53]} 56. Kd1 {[%emt 0:00:31]} Rbd3 {[%emt 0:00:54][%cal Rf3f1]} 57. Ke1 {[%emt 0:02:04] Against Rf1+} Nxc2+ {[%emt 0:04:52]} 58. Rxc2 {[%emt 0:00:05]} Rxf4 {[%emt 0:01:17]} 59. Rxc5 {[%emt 0:00:08]} Rxa3 {[%emt 0:00:28][%mdl 4096] Endgame KRR-KRN} 60. Rc6+ {[%emt 0:00:30]} Kf5 {[%emt 0:01:43]} 61. Rf6+ {[%emt 0:00:16]} Kg4 {[%emt 0:00:11]} 62. Rxg6 {[%emt 0:00:38]} Kxh4 {[%emt 0:00:26]} 63. Rg8 {[%emt 0:00:49]} Rg4 {[%emt 0:00:32]} 64. Rf8 $2 {[%emt 0:02:59]} (64. g6 Rg2 65. Kd1) 64... Rg2 {[%emt 0:02:54] ( -> ...Ra1+)} 65. Rh8+ {[%emt 0:00:54]} Kg4 {[%emt 0:01:02]} 66. Rb8 {[%emt 0:00:29]} Ra1+ {[%emt 0:00:32] Weighted Error Value: White=0.26 (precise) /Black=0.11 (very precise)} 0-1

[Event "Mitropa Cup Women 2022"]
[Site "Corte"]
[Date "2022.05.05"]
[Round "6.3"]
[White "Sedina, Elena"]
[Black "Benmesbah, Natacha"]
[Result "0-1"]
[ECO "B22"]
[WhiteElo "2249"]
[BlackElo "2251"]
[Annotator "TA"]
[PlyCount "104"]
[EventDate "2022.04.30"]
[EventType "team-tourn"]
[EventCountry "FRA"]
[SourceTitle "playchess.com"]
[Source "ChessBase"]
[SourceQuality "1"]
[WhiteTeam "Italy"]
[BlackTeam "France"]
[WhiteTeamCountry "ITA"]
[BlackTeamCountry "FRA"]
[TimeControl "40/5400+30:1800+30"]

{[%evp 16,104,26,35,36,0,0,8,12,-13,-11,0,0,-36,-26,-36,-18,-33,-28,-31,-8,-44,-52,-58,-55,-56,-47,-56,-46,-67,-48,-38,-31,-54,-40,-51,-42,-195,-208,-212,-213,-204,-212,-213,-214,-406,-398,-406,-396,-402,-419,-420,-432,-439,-428,-457,-457,-457,-457,-508,-421,-550,-545,-531,-552,-546,-545,-626,-623,-910,-901,-1225,-1218,-1189,-1181,-1169,-1137,-1269,-1285,-29971,-29969,-29968,-29974,-29974,-29975,-29976,-29977,-29977,-29978,-29978,-29979]} 1. e4 {[%emt 0:00:08]} c5 {[%emt 0:00:03]} 2. c3 {[%emt 0:00:53]} Nf6 {[%emt 0:00:57]} 3. e5 {[%emt 0:00:09]} Nd5 {[%emt 0:00:03]} 4. Nf3 {[%emt 0:00:08]} Nc6 {[%emt 0:00:39]} 5. Bc4 {[%emt 0:06:05]} Nb6 {[%emt 0:02:06]} 6. Bb3 {[%emt 0:01:01]} c4 {[%emt 0:01:45]} 7. Bc2 {[%emt 0:00:06]} d5 {[%emt 0:03:09]} 8. exd6 {[%emt 0:17:03]} Qxd6 {[%emt 0:00:05]} 9. O-O {[%emt 0:05:49]} Bg4 {[%emt 0:11:20] B22: Sicilian: 2 c3.} 10. b3 {[%emt 0:12:02]} Qd5 {[%emt 0:21:22]} 11. Re1 {[%emt 0:05:49] Against Ne5} Bxf3 {[%emt 0:01:07] The position is equal.} 12. Qxf3 {[%emt 0:00:10]} Qxf3 {[%emt 0:00:21]} 13. gxf3 {[%emt 0:00:07]} e6 {[%emt 0:01:26]} 14. Re4 {[%emt 0:21:09]} cxb3 {[%emt 0:02:26]} 15. axb3 {[%emt 0:00:05] [#]} Be7 $146 {[%emt 0:00:24][%cal Bf8e7,Be7d8,Bd8b6][%mdl 32]} ({Predecessor:} 15... Nd5 16. b4 Bd6 17. b5 Ne5 18. d4 Ng6 19. c4 Nb4 20. Bb3 O-O 21. c5 Be7 {½-½ (32) Hayes,M (2196)-Siigur,J (2478) ICCF email 2011}) 16. Na3 {[%emt 0:10:55]} O-O {[%emt 0:00:47][%cal Bh8f8,Bf8d8,Bd8d5][%mdl 32]} 17. Nc4 {[%emt 0:03:49]} Nd5 {[%emt 0:02:05]} 18. Na5 {[%emt 0:05:08]} Nxa5 {[%emt 0:05:55]} 19. Rxa5 {[%emt 0:00:01]} Bd8 {[%emt 0:02:14]} 20. Ra1 {[%emt 0:01:09]} Bb6 {[%emt 0:00:43]} 21. Bb2 {[%emt 0:03:26]} Rfd8 {[%emt 0:01:54]} 22. Kf1 {[%emt 0:04:03]} Nf6 {[%emt 0:05:55][%csl LRd2,LRe4]} 23. Re2 {[%emt 0:00:04]} Rd5 {[%emt 0:00:26]} 24. d4 {[%emt 0:02:05]} Rh5 $36 {[%emt 0:00:45][%mdl 2048] Black has good play.} 25. Re5 {[%emt 0:00:52]} Rxh2 {[%emt 0:01:43]} 26. Rb5 $2 {[%emt 0:00:38] [#]} (26. Kg1 $15 Rh3 27. Rb5) 26... Rh1+ $1 $19 {[%emt 0:03:53]} 27. Ke2 {[%emt 0:00:09]} Rxa1 {[%emt 0:00:05]} 28. Bxa1 {[%emt 0:00:01]} Nd5 {[%emt 0:00:24] Threatens to win with ...a6.} 29. Be4 {[%emt 0:00:48]} a6 {[%emt 0:00:38]} 30. Rxb6 {[%emt 0:00:12]} (30. Rxd5 exd5 31. Bxd5) 30... Nxb6 {[%emt 0:00:04]} 31. Bxb7 {[%emt 0:00:02][%mdl 4096] Endgame KRN-KB} Rb8 {[%emt 0:01:39]} 32. Be4 {[%emt 0:00:27]} f5 {[%emt 0:01:34]} 33. Bc2 {[%emt 0:00:24]} Nd5 {[%emt 0:00:17]} 34. c4 {[%emt 0:00:58]} Nb4 {[%emt 0:00:17]} 35. Bd1 {[%emt 0:00:10]} g5 {[%emt 0:01:00]} 36. Bc3 {[%emt 0:00:47]} h5 {[%emt 0:00:47][%cal Bh7h5,Bh5h4][%mdl 32]} 37. Kf1 {[%emt 0:00:45]} h4 {[%emt 0:00:40]} 38. Kg2 {[%emt 0:00:50]} Kf7 {[%emt 0:00:20]} 39. Bd2 {[%emt 0:00:29]} Kg6 {[%emt 0:00:18]} 40. Kh3 {[%emt 0:00:14]} Nc6 {[%emt 0:01:11]} 41. Bc3 {[%emt 0:31:16]} Rd8 {[%emt 0:35:13]} 42. d5 {[%emt 0:00:00]} exd5 {[%emt 0:00:00]} 43. cxd5 {[%emt 0:00:00]} Rxd5 {[%emt 0:00:00]} 44. Be2 {[%emt 0:00:00] Inhibits Rd3.} Rc5 {[%emt 0:00:00]} 45. Bc4 {[%emt 0:00:00]} a5 {[%emt 0:00:00] [#] aiming for ...Ne5.} 46. Bb2 {[%emt 0:00:00]} Ne5 {[%emt 0:00:00]} 47. Bd4 {[%emt 0:00:00]} g4+ {[%emt 0:00:00] Black mates.} 48. Kg2 {[%emt 0:00:00]} Rxc4 {[%emt 0:00:00]} 49. bxc4 {[%emt 0:00:00]} Nxc4 {[%emt 0:00:00]} 50. fxg4 {[%emt 0:00:00]} fxg4 {[%emt 0:00:00]} 51. f3 {[%emt 0:00:00]} Kh5 {[%emt 0:00:00]} 52. Bf6 {[%emt 0:00:00]} a4 {[%emt 0:00:00] Black took control after the opening.  Weighted Error Value: White=0.50/Black=0.04 (flawless)} 0-1